bitfinex/quotes_SOLUSD_20240906
["timestamp","ask_amount","ask_price","bid_price","bid_amount"]
[1725655986453,42.87716504,122.45,122.22,0.20923008]
[1725655986454,10.0,122.3,122.22,0.20923008]
[1725655986640,10.0,122.28,122.22,0.20923008]
[1725655986845,10.0,122.24,122.22,0.20923008]
[1725655987152,23.17672538,122.37,122.22,0.20923008]
[1725655987153,10.0,122.25,122.22,0.20923008]
[1725655987357,10.0,122.27,122.22,0.20923008]
[1725655987660,8.1758,122.32,122.22,0.20923008]
[1725655987661,10.0,122.3,122.22,0.20923008]
[1725655988332,10.0,122.35,122.22,0.20923008]
[1725655988832,10.0,122.33,122.22,0.20923008]
[1725655989234,10.0,122.37,122.22,0.20923008]
[1725655989435,10.0,122.37,122.23,8.4088]
[1725655989651,10.0,122.35,122.24,65.0]
[1725655989835,10.0,122.33,122.24,45.0]
[1725655990037,10.0,122.31,122.24,45.0]
[1725655990236,10.0,122.33,122.24,45.0]
[1725655990438,10.0,122.31,122.23,8.4088]
[1725655990642,10.0,122.25,122.22,0.20923008]
[1725655990841,10.0,122.37,122.22,0.20923008]
[1725655990842,10.0,122.26,122.22,0.20923008]
[1725655991047,10.0,122.23,122.22,0.20923008]
[1725655991672,12.04569587,122.23,122.22,0.20923008]
[1725655991944,12.04569587,122.23,122.05,0.032774]
[1725655991945,10.0,122.12,122.05,0.032774]
[1725655992138,10.0,122.08,122.05,0.032774]
[1725655992353,10.0,122.06,122.05,0.032774]
[1725655992546,10.0,122.1,122.05,0.032774]
[1725655992749,10.0,122.12,122.05,0.032774]
[1725655993156,10.0,122.15,122.05,0.032774]
[1725655993476,10.0,122.07,122.05,0.032774]
[1725655994293,18.1923,122.07,122.05,0.032774]
[1725655994475,8.1946,122.04,122.0,8.95]
[1725655994771,10.0,122.01,122.0,8.95]
[1725655995143,10.0,121.98,121.8,30.6283]
[1725655995343,12.05001721,121.98,121.97,6.0636]
[1725655995543,12.05001721,121.98,121.97,1.2749]
[1725655995765,10.0,121.98,121.97,1.2749]
[1725655995965,10.0,122.01,121.98,8.1978]
[1725655996267,10.0,121.98,121.97,1.2749]
[1725655996853,10.0,122.0,121.97,1.2749]
[1725655997056,10.0,122.0,121.98,8.1978]
[1725655997238,10.0,121.98,121.97,1.2749]
[1725655997441,10.0,122.01,121.97,1.2749]
[1725655997758,10.0,122.01,121.99,8.1971]
[1725655998368,10.0,121.98,121.97,1.2749]
[1725655998560,10.0,122.04,122.01,8.196]
[1725655998760,10.0,122.04,121.97,1.2749]
[1725655998761,2.04875834,122.14,122.03,8.1947]
[1725655999090,11.3915,122.24,122.0,27.6295]
[1725655999263,2.04718829,122.23,122.13,8.1875]
[1725655999881,2.04718829,122.23,122.0,27.6295]
[1725656000083,2.04718829,122.23,122.01,45.0]
[1725656000453,2.04780936,122.22,122.01,45.0]
[1725656000665,3.08385317,122.26,122.01,45.0]
[1725656000666,2.04655657,122.25,122.16,8.1857]
[1725656000964,2.0460525,122.31,122.22,8.1815]
[1725656001169,2.0460525,122.31,122.08,11.8654]
[1725656001355,2.0460525,122.31,122.09,65.0]
[1725656001683,70.4469,122.27,122.01,11.5646]
[1725656001888,70.4469,122.27,122.08,8.1909]
[1725656001889,8.1866,122.15,122.08,8.1909]
[1725656002188,2.04725435,122.14,122.06,8.1922]
[1725656002482,20.4535,122.23,122.01,11.5646]
[1725656002483,2.04812503,122.19,122.01,11.5646]
[1725656002675,20.4535,122.23,122.01,11.5646]
[1725656002676,2.0474605,122.18,122.01,11.5646]
[1725656002987,50.8982,122.26,122.01,11.5646]
[1725656002988,2.04717482,122.26,122.02,10.0]
[1725656003276,2.04619387,122.3,122.06,10.0]
[1725656003473,2.04619387,122.3,122.01,11.5646]
[1725656003474,2.0453595,122.29,122.03,10.0]
[1725656003683,10.22201024,122.31,122.07,10.0]
[1725656003997,2.04524363,122.35,122.1,51.1868]
[1725656004162,2.04389155,122.34,122.13,10.0]
[1725656004475,8.174,122.34,122.14,45.0]
[1725656004679,8.1728,122.36,122.28,8.1777]
[1725656004870,2.04387739,122.35,122.15,20.0]
[1725656005390,37.7383,122.44,122.15,20.0]
[1725656005391,2.04430522,122.38,122.17,10.0]
[1725656005673,2.04499159,122.37,122.18,20.0]
[1725656005872,2.04387734,122.37,122.19,45.0]
[1725656006072,2.04387734,122.37,122.1,91.1868]
[1725656006073,8.18,122.25,122.1,41.1868]
[1725656006277,2.04387734,122.37,122.1,51.1868]
[1725656006278,8.1741,122.34,122.1,51.1868]
[1725656006459,1.42445225,122.41,122.1,41.1868]
[1725656006460,2.04502803,122.33,122.1,41.1868]
[1725656006661,8.175,122.33,122.13,10.0]
[1725656006870,3.46946376,122.37,122.14,50.0]
[1725656006871,8.174,122.34,122.14,50.0]
[1725656007064,8.174,122.34,122.1,41.1868]
[1725656007065,2.04392413,122.41,122.17,60.0]
[1725656007263,20.4218,122.42,122.17,60.0]
[1725656007264,8.1721,122.37,122.17,60.0]
[1725656007467,8.1748,122.33,122.18,20.0]
[1725656007775,2.0436955,122.36,122.14,20.0]
[1725656007979,20.4277,122.39,122.14,20.0]
[1725656007980,8.1711,122.39,122.18,50.0]
[1725656008186,8.1727,122.36,122.19,65.0]
[1725656008475,2.04357431,122.42,122.19,65.0]
[1725656008678,40.8529,122.4,122.13,50.0]
[1725656008848,8.176,122.31,122.11,10.0]
[1725656009052,2.04414954,122.37,122.14,50.0]
[1725656009551,22.47257852,122.38,122.16,50.0]
[1725656009760,1.42397028,122.43,122.16,50.0]
[1725656009761,2.04376266,122.39,122.16,50.0]
[1725656009963,8.172,122.37,122.16,50.0]
[1725656010164,8.172,122.37,122.14,10.0]
[1725656010165,20.4222,122.42,122.17,65.0]
[1725656010459,1.42397028,122.43,122.18,50.0]
[1725656010674,1.42397028,122.43,122.19,65.0]
[1725656010675,8.1706,122.39,122.19,65.0]
[1725656010853,8.1697,122.41,122.22,50.0]
[1725656011060,3.46718378,122.43,122.24,50.0]
[1725656011061,8.1684,122.43,122.24,50.0]
[1725656011368,10.0,122.47,122.23,65.0]
[1725656011369,10.0,122.47,122.25,65.0]
[1725656011566,2.0427917,122.46,122.25,20.0]
[1725656011882,8.1652,122.47,122.27,50.0]
[1725656012067,10.0,122.6,122.27,50.0]
[1725656012068,8.1645,122.49,122.29,50.0]
[1725656012258,2.04142579,122.48,122.3,65.0]
[1725656012451,20.4101,122.49,122.28,65.0]
[1725656012659,2.04180626,122.5,122.28,65.0]
[1725656012853,1.42058083,122.51,122.28,115.0]
[1725656013057,8.1627,122.51,122.3,50.0]
[1725656013249,2.04108558,122.54,122.31,65.0]
[1725656013483,2.04108558,122.54,122.32,50.0]
[1725656013657,8.1599,122.55,122.34,50.0]
[1725656013853,8.16,122.55,122.35,65.0]
[1725656014051,2.04072096,122.56,122.35,65.0]
[1725656014255,2.04072096,122.54,122.35,65.0]
[1725656014568,2.04072096,122.54,122.35,20.0]
[1725656014760,2.04072096,122.54,122.3,20.0]
[1725656014968,22.04072096,122.54,122.3,20.0]
[1725656015275,20.4056,122.52,122.29,41.38996418]
[1725656015574,8.1649,122.48,122.3,50.0]
[1725656015892,2.04173661,122.57,122.29,41.38996418]
[1725656015893,20.3991,122.56,122.32,50.0]
[1725656016177,22.04075688,122.55,122.29,41.38996418]
[1725656016359,2.04173984,122.54,122.29,41.38996418]
[1725656016571,8.1674,122.44,122.29,41.38996418]
[1725656016761,20.4073,122.51,122.29,41.38996418]
[1725656016762,8.1668,122.45,122.29,41.38996418]
[1725656016964,2.04173984,122.54,122.29,41.38996418]
[1725656016965,32.767363,122.53,122.31,50.0]
[1725656017176,81.201,122.55,122.29,41.38996418]
[1725656017177,22.04129001,122.52,122.29,41.38996418]
[1725656017375,2.041499,122.51,122.29,41.38996418]
[1725656017552,42.857099,122.51,122.29,41.38996418]
[1725656017759,20.4107,122.49,122.29,41.38996418]
[1725656017960,2.04236363,122.48,122.29,41.38996418]
[1725656018166,8.1677,122.44,122.29,41.38996418]
[1725656018457,20.0,122.48,122.29,41.38996418]
[1725656018687,2.69488535,122.45,122.29,41.38996418]
[1725656018979,20.426,122.4,122.29,41.38996418]
[1725656019180,8.1754,122.32,122.29,1.88496418]
[1725656019388,2.04343389,122.39,122.29,1.88496418]
[1725656019389,8.1746,122.33,122.29,1.88496418]
[1725656019590,12.95226547,122.37,122.28,1.88496418]
[1725656019761,12.95226547,122.37,122.25,1.88496418]
[1725656019762,0.7995,122.35,122.25,1.35717421]
[1725656019962,28.6274,122.26,122.03,27.5547]
[1725656020258,40.8876,122.29,122.03,30.94260071]
[1725656020259,12.26586547,122.25,122.03,30.94260071]
[1725656020458,2.04623182,122.28,122.04,50.0]
[1725656020459,8.1815,122.23,122.04,50.0]
[1725656020767,2.04558161,122.22,122.03,30.94260071]
[1725656021078,8.1891,122.12,122.03,30.94260071]
[1725656021455,2.04775014,122.11,122.03,3.38790071]
[1725656021656,20.4622,122.18,122.03,3.38790071]
[1725656021657,8.1924,122.07,122.03,3.38790071]
[1725656021857,2.04852216,122.13,122.03,3.38790071]
[1725656022093,8.1903,122.1,122.03,3.38790071]
[1725656022253,2.04750542,122.17,122.03,3.38790071]
[1725656022659,22.04750542,122.17,122.03,3.38790071]
[1725656023057,8.1877,122.14,122.06,8.1924]
[1725656023262,2.04713871,122.22,122.03,3.38790071]
[1725656023567,22.04713871,122.22,122.03,3.38790071]
[1725656023768,22.04713871,122.22,122.04,11.6718]
[1725656023769,8.1822,122.22,122.04,11.6718]
[1725656024080,2.04589548,122.27,122.15,8.1865]
[1725656024312,8.1815,122.23,122.16,53.1858]
[1725656024460,40.8876,122.29,122.16,45.0]
[1725656024664,22.49082441,122.28,122.16,45.0]
[1725656024891,31.88647476,122.32,122.16,45.0]
[1725656025092,2.04465151,122.35,122.16,45.0]
[1725656025384,2.04444181,122.34,122.17,11.197]
[1725656025585,20.4379,122.33,122.18,45.0]
[1725656025761,2.04516931,122.32,122.18,45.0]
[1725656026087,11.44787476,122.34,122.18,45.0]
[1725656026088,2.04486579,122.31,122.18,45.0]
[1725656026294,31.88737476,122.32,122.18,45.0]
[1725656026589,8.1787,122.27,122.2,8.1831]
[1725656026878,20.4395,122.32,122.21,45.0]
[1725656027082,2.04482808,122.36,122.21,45.0]
[1725656027083,22.47672808,122.36,122.21,45.0]
[1725656027318,11.44787476,122.37,122.21,45.0]
[1725656027319,13.49207386,122.37,122.21,45.0]
[1725656027589,8.1734,122.35,122.21,45.0]
[1725656027766,8.1724,122.37,122.21,45.0]
[1725656027963,20.4189,122.44,122.32,8.1751]
[1725656028270,11.1061,122.5,122.33,45.0]
[1725656028271,2.04287641,122.45,122.33,45.0]
[1725656028587,8.1676,122.44,122.33,45.0]
[1725656028797,2.04199746,122.47,122.33,45.0]
[1725656028959,40.8368,122.44,122.25,11.856]
[1725656029156,13.491376,122.43,122.25,11.856]
[1725656029397,8.1711,122.39,122.25,11.856]
[1725656029770,81.873275,122.52,122.25,11.856]
[1725656029771,2.04304108,122.51,122.25,11.856]
[1725656029978,8.1693,122.41,122.25,11.856]
[1725656030286,20.4174,122.45,122.25,11.856]
[1725656030485,2.04290596,122.45,122.26,65.0]
[1725656030783,20.4213,122.43,122.25,11.856]
[1725656030989,7.75218781,122.42,122.25,11.856]
[1725656031159,40.8503,122.4,122.2,30.50677251]
[1725656031362,52.0447747,122.39,122.2,30.50677251]
[1725656031586,65.0,122.38,122.2,30.50677251]
[1725656031767,20.4393,122.32,122.2,30.50677251]
[1725656031963,22.04484715,122.31,122.2,30.50677251]
[1725656032188,22.04484715,122.31,122.2,1.70267251]
[1725656032369,20.4438,122.29,122.2,1.70267251]
[1725656032573,20.0,122.28,122.2,1.70267251]
[1725656032774,40.8792,122.32,122.2,1.70267251]
[1725656033085,20.0,122.31,122.2,1.70267251]
[1725656033287,22.04463839,122.31,122.2,1.70267251]
[1725656033484,8.1778,122.29,122.2,1.70267251]
[1725656033663,2.04434252,122.39,122.2,1.70267251]
[1725656033868,2.04447097,122.39,122.2,1.70267251]
[1725656034178,2.04393884,122.39,122.2,1.70267251]
[1725656034374,8.1761,122.31,122.2,1.70267251]
[1725656034576,8.1752,122.33,122.2,1.70267251]
[1725656034785,8.1732,122.36,122.21,29.8867]
[1725656034967,2.0430318,122.37,122.22,65.0]
[1725656035169,40.8503,122.4,122.22,65.0]
[1725656035170,40.8649,122.36,122.22,45.0]
[1725656035376,20.4367,122.33,122.21,29.8867]
[1725656035583,20.4362,122.34,122.22,1.70267251]
[1725656035787,8.178,122.28,122.22,1.70267251]
[1725656035983,20.4362,122.34,122.22,1.70267251]
[1725656036186,20.0,122.33,122.22,1.70267251]
[1725656036481,20.4399,122.31,122.22,1.70267251]
[1725656036777,8.1793,122.26,122.22,1.70267251]
[1725656036975,8.1806,122.24,122.22,1.70267251]
[1725656037178,20.4453,122.28,122.22,1.70267251]
[1725656038179,8.1812,122.23,122.22,1.70267251]
[1725656038883,40.8912,122.28,122.22,1.70267251]
[1725656039100,8.1803,122.25,122.22,1.70267251]
[1725656039350,8.1792,122.27,122.22,1.70267251]
[1725656039524,20.4375,122.33,122.22,1.70267251]
[1725656039807,8.1784,122.28,122.22,1.70267251]
[1725656040101,8.1808,122.24,122.22,1.70267251]
[1725656040308,8.1812,122.23,122.22,1.70267251]
[1725656040508,40.8778,122.32,122.13,29.1532]
[1725656040509,11.44787476,122.28,122.13,29.1532]
[1725656040712,2.04629414,122.27,122.13,29.1532]
[1725656041007,8.1873,122.14,122.13,29.1532]
[1725656041207,8.1893,122.11,122.1,12.3302]
[1725656041412,8.1893,122.11,122.08,1.6852282]
[1725656041413,8.1906,122.09,122.08,1.6852282]
[1725656041596,28.6672,122.09,122.08,2.82e-05]
[1725656041785,8.1906,122.09,122.08,2.82e-05]
[1725656043126,20.4696,122.14,122.08,2.82e-05]
[1725656043327,8.1906,122.09,122.08,2.82e-05]
[1725656043509,8.198,121.98,121.97,1.2749]
[1725656044524,40.9733,122.04,121.97,1.2749]
[1725656044697,20.0,122.03,121.97,1.2749]
[1725656044900,50.0,122.26,121.98,12.0138]
[1725656045107,12.08911809,122.39,122.01,8.1954]
[1725656045108,8.1915,122.08,122.01,8.1954]
[1725656045394,8.1925,122.07,121.98,12.0138]
[1725656045596,8.1911,122.09,122.01,8.1959]
[1725656045820,40.9308,122.16,122.02,20.4876]
[1725656046012,8.1857,122.17,122.1,8.1897]
[1725656046215,8.1857,122.17,122.03,29.1525]
[1725656046216,60.0,122.33,122.13,12.0138]
[1725656046516,40.9044,122.24,122.11,45.0]
[1725656046843,8.1867,122.15,122.11,45.0]
[1725656047005,2.04649139,122.23,122.11,45.0]
[1725656047322,61.3561,122.24,122.1,45.0]
[1725656047519,8.1854,122.17,122.11,8.189]
[1725656047694,8.1854,122.17,122.1,45.0]
[1725656047695,8.184,122.19,122.12,65.4707]
[1725656047891,20.4572,122.21,122.12,45.0]
[1725656048096,8.1895,122.11,122.06,12.0138]
[1725656048324,20.4627,122.18,122.06,12.0138]
[1725656048495,22.51002898,122.18,122.06,12.0138]
[1725656048823,20.4627,122.18,122.06,20.206]
[1725656049198,20.4627,122.18,122.06,12.0138]
[1725656049408,2.04704439,122.23,122.12,8.188]
[1725656049409,2.04658413,122.23,122.12,8.188]
[1725656049720,99.00184535,122.36,122.06,12.0138]
[1725656049721,8.1836,122.2,122.13,8.1878]
[1725656049942,40.8882,122.29,122.16,20.4641]
[1725656050133,2.04562834,122.33,122.18,11.2892]
[1725656050301,1.42225571,122.36,122.19,45.0]
[1725656050302,2.04472723,122.32,122.19,45.0]
[1725656050620,8.1773,122.29,122.22,20.4542]
[1725656050826,8.1773,122.29,122.23,53.1812]
[1725656051030,8.1764,122.31,122.23,45.0]
[1725656051230,1.42225571,122.36,122.25,20.4493]
[1725656051437,2.04405802,122.37,122.26,45.0]
[1725656051608,8.1738,122.35,122.28,8.1778]
[1725656051808,8.1738,122.35,122.18,71.2892]
[1725656051809,1.42181764,122.39,122.29,45.0]
[1725656052005,8.1713,122.38,122.31,8.1758]
[1725656052207,1.42125754,122.45,122.31,20.4392]
[1725656052498,8.1709,122.39,122.32,45.0]
[1725656052701,3.4636978,122.45,122.32,45.0]
[1725656052702,8.1713,122.38,122.32,45.0]
[1725656052917,8.1741,122.34,122.32,45.0]
[1725656053198,40.8407,122.43,122.23,63.1971]
[1725656053199,5.73929167,122.41,122.23,63.1971]
[1725656053403,20.432,122.36,122.25,8.1798]
[1725656053625,2.04410579,122.4,122.23,63.1971]
[1725656053830,46.56418309,122.39,122.25,8.1794]
[1725656054003,8.1767,122.3,122.23,42.7447]
[1725656054200,52.27276618,122.39,122.23,42.7447]
[1725656054201,20.4322,122.36,122.23,42.7447]
[1725656054534,20.4322,122.36,122.06,279.33795376]
[1725656054535,11.44787476,122.34,122.17,11.6575]
[1725656054703,2.04513402,122.33,122.17,11.6575]
[1725656054902,8.1822,122.22,122.17,11.6575]
[1725656055220,40.8825,122.31,122.17,11.6575]
[1725656055410,8.1765,122.31,122.22,20.4545]
[1725656055606,20.4326,122.36,122.12,10.0]
[1725656055607,2.04418658,122.36,122.13,50.0]
[1725656055811,8.1822,122.22,122.14,8.1867]
[1725656056099,8.1833,122.2,122.14,8.1871]
[1725656056304,8.1861,122.16,122.1,11.3158]
[1725656056521,42.94260088,122.26,122.1,11.3158]
[1725656056726,8.1893,122.11,122.1,11.3158]
[1725656056930,8.1887,122.12,122.1,11.3158]
[1725656057104,8.1909,122.09,122.07,28.7245]
[1725656057306,8.1909,122.09,122.02,11.3158]
[1725656057525,20.4642,122.17,122.02,11.3158]
[1725656057526,2.0476632,122.15,122.02,11.3158]
[1725656057707,20.4642,122.17,122.02,11.3158]
[1725656057708,8.1884,122.13,122.06,8.1924]
[1725656058237,2.04783167,122.22,122.05,20.4832]
[1725656058238,8.187,122.15,122.05,20.4832]
[1725656058543,2.04663039,122.28,122.05,50.0]
[1725656058734,8.1808,122.24,122.13,20.4697]
[1725656058911,2.04512074,122.29,122.16,11.181]
[1725656059111,8.1836,122.2,122.16,11.181]
[1725656059327,8.1836,122.2,122.17,45.0]
[1725656059528,8.1808,122.24,122.17,45.0]
[1725656059913,8.1814,122.23,122.17,45.0]
[1725656060109,20.4459,122.28,122.17,45.0]
[1725656060309,40.8977,122.26,122.16,11.181]
[1725656060535,8.1849,122.18,122.14,30.788]
[1725656060722,20.456,122.22,122.14,30.788]
[1725656061049,22.04589743,122.21,122.09,12.2094]
[1725656061332,20.4612,122.19,122.09,12.2094]
[1725656061534,20.0,122.21,122.02,12.2094]
[1725656061535,8.1916,122.08,122.02,12.2094]
[1725656061740,2.04806529,122.11,122.02,12.2094]
[1725656061910,20.4776,122.09,121.98,29.122]
[1725656062108,20.4776,122.09,121.97,1.2749]
[1725656062109,22.04876121,122.08,121.97,1.2749]
[1725656062309,8.1975,121.99,121.97,1.2749]
[1725656062514,22.53165537,122.06,121.97,1.2749]
[1725656062812,8.1944,122.04,121.97,1.2749]
[1725656063006,8.193,122.06,121.99,8.1971]
[1725656063213,8.1921,122.07,122.01,8.196]
[1725656063408,8.1921,122.07,121.97,1.2749]
[1725656063409,8.1927,122.06,121.99,8.1967]
[1725656063645,2.04886342,122.14,122.0,8.1962]
[1725656063938,2.04886342,122.14,121.97,1.2749]
[1725656063939,8.1955,122.02,121.97,1.2749]
[1725656064141,20.4775,122.09,121.97,9.4735]
[1725656064142,8.1946,122.04,121.97,9.4735]
[1725656064317,28.1947,122.03,121.97,1.2749]
[1725656064518,8.1954,122.02,121.97,1.2749]
[1725656064829,20.0,122.03,121.97,1.2749]
[1725656065037,20.0,122.05,121.97,1.2749]
[1725656065222,8.1946,122.04,121.97,1.2749]
[1725656065542,28.1934,122.05,121.98,20.4936]
[1725656065722,8.1968,122.0,121.97,1.2749]
[1725656066046,2.04935093,122.04,121.97,1.2749]
[1725656066225,8.1972,122.0,121.97,1.2749]
[1725656066551,20.0,121.99,121.97,1.2749]
[1725656066755,8.1946,122.04,121.97,1.2749]
[1725656066917,2.0484678,122.1,121.97,1.2749]
[1725656067248,40.948,122.11,121.97,1.2749]
[1725656067249,20.4774,122.09,121.97,1.2749]
[1725656067409,8.1953,122.03,121.97,1.2749]
[1725656067616,8.1943,122.04,121.98,8.1978]
[1725656067913,8.1943,122.04,121.97,1.2749]
[1725656067914,8.1919,122.08,121.97,1.2749]
[1725656068110,8.1905,122.1,122.01,20.49]
[1725656068310,20.4693,122.14,121.97,1.2749]
[1725656068311,20.4866,122.04,121.97,1.2749]
[1725656068533,2.04890696,122.07,121.97,1.2749]
[1725656068718,8.198,121.98,121.97,1.2749]
[1725656069250,8.2049,121.88,121.84,99.72241828]
[1725656069423,2.05011041,121.97,121.84,99.72241828]
[1725656069424,8.2068,121.85,121.84,99.72241828]
[1725656069614,2.05163147,121.95,121.84,99.72241828]
[1725656069937,8.2034,121.9,121.84,99.72241828]
[1725656070150,20.0,121.89,121.84,99.72241828]
[1725656070518,28.2043,121.89,121.84,99.72241828]
[1725656070725,22.05196771,121.91,121.84,99.72241828]
[1725656070930,8.2068,121.85,121.84,99.72241828]
[1725656071245,28.2068,121.85,121.84,99.72241828]
[1725656071443,28.2068,121.85,121.84,56.30741828]
[1725656071626,28.2068,121.85,121.84,43.90311828]
[1725656071627,75.25949081,121.85,121.84,43.90311828]
[1725656072143,75.25949081,121.85,121.84,1e-08]
[1725656072144,20.0,121.85,121.84,1e-08]
[1725656072444,20.0,121.85,121.81,6.17675073]
[1725656072445,21.42689032,121.85,121.81,6.17675073]
[1725656072645,2.05319129,121.84,121.81,6.17675073]
[1725656072941,3.90285629,121.84,121.81,6.17675073]
[1725656073345,1.849665,121.84,121.81,6.17675073]
[1725656073548,2.05246278,121.84,121.81,6.17675073]
[1725656073721,1.42714271,121.83,121.81,6.17675073]
[1725656073918,1.42714271,121.83,121.77,0.07818354]
[1725656073919,2.05380353,121.82,121.77,0.07818354]
[1725656074227,2.05392375,121.81,121.77,1e-08]
[1725656075125,2.0535812,121.82,121.77,1e-08]
[1725656075323,2.0535812,121.81,121.74,8.2139]
[1725656075530,3.48056253,121.83,121.74,8.2141]
[1725656075728,2.05341982,121.8,121.72,20.03770001]
[1725656075932,2.05362663,121.79,121.74,8.214]
[1725656076245,2.05346261,121.87,121.83,8.2079]
[1725656076422,2.05346261,121.87,121.71,1.5]
[1725656076423,1.4266586,121.88,121.81,20.0225]
[1725656076623,2.05239884,121.87,121.81,20.0225]
[1725656076920,2.05239884,121.87,121.76,41.064]
[1725656076921,2.0521319,121.92,121.84,20.5174]
[1725656077240,3.47796652,121.92,121.84,20.5174]
[1725656077447,2.0521319,121.92,121.85,45.0]
[1725656077650,9.62644574,121.94,121.88,8.2047]
[1725656077819,9.62644574,121.94,121.84,20.5174]
[1725656077820,8.2021,121.92,121.86,8.2057]
[1725656078014,2.05126533,121.91,121.86,8.2057]
[1725656078232,2.05157547,121.9,121.84,28.7243]
[1725656078453,8.2009,121.94,121.84,20.5174]
[1725656078745,10.25125707,121.95,121.87,20.5129]
[1725656078937,2.05110654,122.01,121.87,20.5129]
[1725656079137,8.2013,121.94,121.87,8.2054]
[1725656079365,8.2,121.96,121.88,45.0]
[1725656079539,8.2001,121.95,121.89,8.2039]
[1725656079717,2.05083907,121.97,121.9,53.2033]
[1725656079922,9.74464026,122.45,121.9,45.0]
[1725656079923,20.4879,122.03,121.9,45.0]
[1725656080123,8.1984,121.98,121.92,8.202]
[1725656080325,2.05030108,121.97,121.9,53.2028]
[1725656080524,2.05030108,121.97,121.85,20.5157]
[1725656080825,2.05030108,121.97,121.82,28.108]
[1725656080826,22.54760108,121.97,121.82,28.108]
[1725656081038,20.5023,121.94,121.82,28.108]
[1725656081241,2.05221015,121.93,121.82,28.108]
[1725656081538,40.9715,122.04,121.82,28.108]
[1725656081741,52.05081338,122.03,122.0,289.1495]
[1725656082048,50.0,122.01,122.0,128.574339]
[1725656082233,52.05054197,122.01,122.0,12.501639]
[1725656082548,52.05054197,122.01,121.81,11.7175]
[1725656082549,50.0,121.96,121.81,11.7175]
[1725656082753,10.0,121.98,121.81,19.9267]
[1725656082754,8.2052,121.88,121.81,19.9267]
[1725656082929,8.2063,121.86,121.81,11.7175]
[1725656083360,2.05081338,121.89,121.77,20.529]
[1725656083527,8.2025,121.92,121.83,20.5202]
[1725656083730,8.2006,121.95,121.84,1.64114682]
[1725656084026,1.42537481,122.03,121.8,41.0489]
[1725656084027,23.96418819,122.03,121.89,20.5099]
[1725656084227,8.1994,121.96,121.89,20.5099]
[1725656084426,23.96418819,122.03,121.91,8.2026]
[1725656084848,23.96418819,122.03,121.92,45.0]
[1725656085048,8.1988,121.97,121.92,45.0]
[1725656085239,23.96418819,122.03,121.87,40.6864]
[1725656085240,2.05050892,121.96,121.87,40.6864]
[1725656085442,8.2035,121.9,121.87,11.7357]
[1725656085647,2.05081338,121.89,121.8,60.9252]
[1725656085957,8.2069,121.85,121.8,11.4504]
[1725656086466,8.2056,121.87,121.8,19.6605]
[1725656086756,2.05081338,121.89,121.8,19.6605]
[1725656086963,2.05081338,121.9,121.81,8.2094]
[1725656087150,20.5073,121.91,121.8,11.4504]
[1725656087325,2.05081338,121.93,121.81,20.5233]
[1725656087958,2.05081338,121.93,121.82,45.0]
[1725656088192,2.05081338,121.93,121.53,42.1801]
[1725656088193,10.0,121.71,121.53,42.1801]
[1725656088336,5.38428325,121.72,121.67,26.9375]
[1725656088542,10.0,121.79,121.67,26.9375]
[1725656088741,8.2136,121.75,121.67,26.9375]
[1725656088942,12.05361738,121.79,121.68,1.23689384]
[1725656089168,8.2137,121.75,121.69,1.23648845]
[1725656089376,10.0,121.76,121.67,35.156]
[1725656089377,8.2143,121.74,121.67,33.1562]
[1725656089550,10.0,121.74,121.67,24.9375]
[1725656089862,8.2177,121.69,121.67,24.9375]
[1725656090463,10.0,121.68,121.67,13.0]
[1725656090747,10.0,121.68,121.6,11.3083]
[1725656090748,2.05530477,121.73,121.6,11.3083]
[1725656090942,41.33194966,121.91,121.61,1.23872336]